fUSD/lending_fUSD_20240423
["ID","MTS","AMOUNT","RATE_DAILY","PERIOD"]
[323283958,1713871841441,-229.58966246,0.00011275,2]
[323283961,1713871841451,-500.0,0.00011275,2]
[323283963,1713871841460,-500.0,0.00011275,2]
[323283965,1713871841470,-515.28975712,0.00011275,2]
[323283967,1713871841479,-723.07,0.00011275,2]
[323283969,1713871841488,-641.32,0.00011275,2]
[323283971,1713871841499,-500.0,0.00011275,2]
[323283972,1713871841508,-378.10863088,0.00011275,2]
[323283975,1713871841519,-500.0,0.00011275,2]
[323283977,1713871841528,-155.24916091,0.00011275,2]
[323283979,1713871841537,-500.0,0.00011275,2]
[323283981,1713871841546,-258.68763,0.0001142,2]
[323283983,1713871841555,-161.99368226,0.00011434,2]
[323283985,1713871841564,-500.0,0.00011447,2]
[323283987,1713871841574,-154.42219937,0.00011447,2]
[323283989,1713871841583,-395.9848,0.00011448,2]
[323283991,1713871841593,-10000.0,0.0001148,2]
[323283993,1713871841602,-12610.79589738,0.000115,2]
[323283995,1713871841612,-1600.0,0.000115,4]
[323283997,1713871841621,-15858.0,0.000115,2]
[323283999,1713871841630,-10000.0,0.00011536,2]
[323284001,1713871841641,-641.0896,0.00011536,2]
[323284003,1713871841651,-262.16181551,0.00011546,2]
[323284005,1713871841663,-4351.9652824,0.00011546,2]
[323284007,1713871841673,-157.77230687,0.00011546,2]
[323284010,1713871841683,-174.23461804,0.00011546,2]
[323284012,1713871841695,-156.52652267,0.00011546,2]
[323284014,1713871841704,-500.0,0.00011546,2]
[323284016,1713871841713,-1896.92,0.00011546,2]
[323284018,1713871841722,-500.0,0.00011546,2]
[323284020,1713871841732,-1234.83,0.00011546,2]
[323284022,1713871841742,-500.0,0.00011546,2]
[323284023,1713871841751,-3765.16,0.00011546,2]
[323284024,1713871841760,-500.0,0.00011546,2]
[323284025,1713871841769,-500.0,0.00011546,2]
[323284026,1713871841778,-3758.2,0.00011546,2]
[323284027,1713871841787,-500.0,0.00011546,2]
[323284028,1713871841796,-500.0,0.00011546,2]
[323284029,1713871841806,-8405.67,0.00011546,2]
[323284030,1713871841815,-1070.9,0.00011546,2]
[323284031,1713871841825,-1028.79,0.00011546,2]
[323284032,1713871841834,-500.0,0.00011546,2]
[323284034,1713871841843,-3041.11,0.00011546,2]
[323284036,1713871841852,-9734.69,0.00011546,2]
[323284038,1713871841862,-500.0,0.00011546,2]
[323284040,1713871841872,-500.0,0.00011546,2]
[323284042,1713871841881,-5354.4,0.00011546,2]
[323284044,1713871841890,-946.14,0.00011546,2]
[323284046,1713871841900,-500.0,0.00011546,2]
[323284048,1713871841909,-500.0,0.00011546,2]
[323284050,1713871841918,-1522.26,0.00011546,2]
[323284052,1713871841927,-500.0,0.00011546,2]
[323284054,1713871841937,-500.0,0.00011546,2]
[323284056,1713871841947,-514.3,0.00011546,2]
[323284058,1713871841956,-854.73,0.00011546,2]
[323284060,1713871841966,-500.0,0.00011546,2]
[323284062,1713871841976,-500.0,0.00011546,2]
[323284064,1713871841989,-938.35,0.00011546,2]
[323284067,1713871841999,-538.28,0.00011546,2]
[323284069,1713871842009,-851.35,0.00011546,2]
[323284071,1713871842018,-500.0,0.00011546,2]
[323284073,1713871842027,-652.45,0.00011546,2]
[323284074,1713871842037,-500.0,0.00011546,2]
[323284077,1713871842047,-762.8,0.00011546,2]
[323284079,1713871842056,-2370.42028101,0.00011547,2]
[323284080,1713871842065,-10000.0,0.00011547,2]
[323284083,1713871842075,-486.71356844,0.00011547,2]
[323284084,1713871842085,-907.45,0.00011547,2]
[323284087,1713871842096,-1525.06,0.00011547,2]
[323284088,1713871842105,-500.0,0.00011547,2]
[323284091,1713871842115,-500.0,0.00011547,2]
[323284093,1713871842126,-500.0,0.00011547,2]
[323284095,1713871842135,-1013.84,0.00011547,2]
[323284097,1713871842144,-500.0,0.00011547,2]
[323284099,1713871842154,-500.0,0.00011547,2]
[323284101,1713871842163,-500.0,0.00011547,2]
[323284103,1713871842172,-500.0,0.00011547,2]
[323284105,1713871842181,-963.26,0.00011547,2]
[323284107,1713871842191,-500.0,0.00011547,2]
[323284109,1713871842200,-166.42637839,0.00011547,2]
[323284111,1713871842210,-500.0,0.00011547,2]
[323284113,1713871842219,-500.0,0.00011547,2]
[323284115,1713871842229,-528.37,0.00011547,2]
[323284117,1713871842238,-500.0,0.00011547,2]
[323284119,1713871842247,-500.0,0.00011547,2]
[323284121,1713871842256,-500.0,0.00011547,2]
[323284123,1713871842265,-500.0,0.00011547,2]
[323284125,1713871842274,-500.0,0.00011547,2]
[323284127,1713871842283,-500.0,0.00011547,2]
[323284130,1713871842292,-613.2,0.00011547,2]
[323284133,1713871842301,-167.464435,0.00011547,2]
[323284135,1713871842310,-605.696809,0.00011547,2]
[323284137,1713871842320,-500.0,0.00011547,2]
[323284139,1713871842330,-1360.4,0.00011547,2]
[323284141,1713871842339,-500.0,0.00011547,2]
[323284143,1713871842348,-150.0,0.00011547,2]
[323284145,1713871842358,-226.16657668,0.00011547,2]
[323284147,1713871842367,-980.6,0.00011547,2]
[323284149,1713871842377,-500.0,0.00011547,2]
[323284151,1713871842386,-622.13671738,0.00011547,2]
[323284153,1713871842396,-2078.28,0.00011547,2]
[323284155,1713871842405,-500.0,0.00011547,2]
[323284157,1713871842415,-1298.26,0.00011547,2]
[323284159,1713871842424,-673.09,0.00011547,2]
[323284161,1713871842433,-500.0,0.00011547,2]
[323284209,1713871842655,-500.0,0.00011547,2]
[323284211,1713871842669,-500.0,0.00011547,2]
[323284213,1713871842678,-500.0,0.00011547,2]
[323284215,1713871842688,-465.81356045,0.00011547,2]
[323284217,1713871842698,-500.0,0.00011547,2]
[323284219,1713871842707,-500.0,0.00011547,2]
[323284221,1713871842717,-500.0,0.00011547,2]
[323284223,1713871842726,-500.0,0.00011547,2]
[323284225,1713871842737,-775.01,0.00011547,2]
[323284227,1713871842746,-503.77097035,0.00011547,2]
[323284229,1713871842756,-3552.32,0.00011547,2]
[323284231,1713871842766,-500.0,0.00011547,2]
[323284233,1713871842775,-2623.78,0.00011547,2]
[323284235,1713871842784,-500.0,0.00011547,2]
[323284237,1713871842794,-500.0,0.00011547,2]
[323284239,1713871842803,-500.0,0.00011547,2]
[323284241,1713871842813,-1396.25,0.00011547,2]
[323284244,1713871842823,-1254.72,0.00011547,2]
[323284246,1713871842833,-242.28309461,0.00011547,2]
[323284248,1713871842842,-500.0,0.00011547,2]
[323284250,1713871842851,-862.5,0.00011547,2]
[323284252,1713871842860,-1216.26,0.00011547,2]
[323284253,1713871842869,-498.66235559,0.00011547,2]
[323284256,1713871842879,-500.0,0.00011547,2]
[323284258,1713871842888,-500.0,0.00011547,2]
[323284260,1713871842897,-1878.46,0.00011547,2]
[323284262,1713871842906,-500.0,0.00011547,2]
[323284264,1713871842915,-5560.76,0.00011547,2]
[323284266,1713871842924,-500.0,0.00011547,2]
[323284268,1713871842933,-272.8825667,0.00011547,2]
[323284270,1713871842945,-500.0,0.00011547,2]
[323284271,1713871842954,-500.0,0.00011547,2]
[323284273,1713871842963,-305.21443504,0.00011547,2]
[323284275,1713871842973,-3130.54,0.00011547,2]
[323284277,1713871842982,-646.91,0.00011547,2]
[323284279,1713871842991,-500.0,0.00011547,2]
[323284281,1713871843000,-625.36,0.00011547,2]
[323284284,1713871843010,-500.0,0.00011547,2]
[323284286,1713871843019,-729.31,0.00011547,2]
[323284288,1713871843029,-500.0,0.00011547,2]
[323284290,1713871843037,-606.95,0.00011547,2]
[323284292,1713871843047,-500.0,0.00011547,2]
[323284294,1713871843055,-168.91078566,0.00011547,2]
[323284325,1713871843641,-331.08921434,0.00011547,2]
[323284326,1713871843653,-500.0,0.00011547,2]
[323284327,1713871843664,-35.48241699,0.00011547,2]
[323284328,1713871843678,-495.28758301,0.00011547,2]
[323284329,1713871843688,-511.57741706,0.00011547,2]
[323284330,1713871843707,-715.87520571,0.00011547,2]
[323284331,1713871843722,-816.5688621,0.00011547,2]
[323284332,1713871843734,-2459.61851513,0.00011547,2]
[323284333,1713871843744,-500.0,0.00011547,2]
[323284334,1713871843753,-2500.73,0.00011547,2]
[323284335,1713871843763,-986.19,0.00011547,2]
[323284336,1713871843773,-500.0,0.00011547,2]
[323284337,1713871843783,-500.0,0.00011547,2]
[323284338,1713871843792,-551.52682909,0.00011547,2]
[323284339,1713871843802,-500.0,0.00011547,2]
[323284340,1713871843811,-564.79,0.00011547,2]
[323284341,1713871843821,-2251.35,0.00011547,2]
[323284342,1713871843830,-754.05,0.00011547,2]
[323284343,1713871843841,-500.0,0.00011547,2]
[323284344,1713871843850,-3596.76,0.00011547,2]
[323284345,1713871843860,-500.0,0.00011547,2]
[323284346,1713871843869,-500.0,0.00011547,2]
[323284347,1713871843879,-2085.86,0.00011547,2]
[323284348,1713871843888,-1084.42,0.00011547,2]
[323284349,1713871843898,-500.0,0.00011547,2]
[323284350,1713871843907,-500.0,0.00011547,2]
[323284351,1713871843916,-2835.65,0.00011547,2]
[323284352,1713871843924,-500.0,0.00011547,2]
[323284353,1713871843934,-500.0,0.00011547,2]
[323284354,1713871843943,-500.0,0.00011547,2]
[323284355,1713871843953,-9181.46,0.00011547,2]
[323284356,1713871843962,-500.0,0.00011547,2]
[323284357,1713871843971,-761.08,0.00011547,2]
[323284358,1713871843980,-500.0,0.00011547,2]
[323284359,1713871843989,-384.13343323,0.00011547,2]
[323284360,1713871843997,-1898.93,0.00011547,2]
[323284361,1713871844006,-500.0,0.00011547,2]
[323284362,1713871844016,-10139.44,0.00011547,2]
[323284363,1713871844025,-1470.41,0.00011547,2]
[323284364,1713871844034,-500.0,0.00011547,2]
[323284365,1713871844043,-1787.69,0.00011547,2]
[323284366,1713871844053,-1433.16,0.00011547,2]
[323284367,1713871844062,-500.0,0.00011547,2]
[323284368,1713871844072,-574.31760723,0.00011547,2]
[323284369,1713871844081,-155.86603091,0.00011547,2]
[323284370,1713871844090,-500.0,0.00011547,2]
[323284371,1713871844099,-575.66757984,0.00011547,2]
[323284372,1713871844109,-500.0,0.00011547,2]
[323284373,1713871844118,-1006.1,0.00011547,2]
[323284374,1713871844127,-500.0,0.00011547,2]
[323284375,1713871844137,-500.0,0.00011547,2]
[323284376,1713871844146,-1821.11,0.00011547,2]
[323284377,1713871844155,-500.0,0.00011547,2]
[323284378,1713871844165,-637.3,0.00011547,2]
[323284379,1713871844176,-24871.53,0.00011547,2]
[323284380,1713871844186,-1477.84,0.00011547,2]
[323284381,1713871844195,-500.0,0.00011547,2]
[323284382,1713871844206,-2122.21,0.00011547,2]
[323284383,1713871844217,-500.0,0.00011547,2]
[323284384,1713871844226,-549.75155059,0.00011547,2]
[323284385,1713871844235,-2342.85,0.00011547,2]
[323284386,1713871844245,-505.09,0.00011547,2]
[323284387,1713871844255,-500.0,0.00011547,2]
[323284388,1713871844265,-930.33,0.00011547,2]
[323284389,1713871844274,-1393.2,0.00011547,2]
[323284390,1713871844293,-3351.1,0.00011547,2]
[323284391,1713871844305,-500.0,0.00011547,2]
[323284392,1713871844314,-1127.53,0.00011547,2]
[323284393,1713871844325,-643.48,0.00011547,2]
[323284394,1713871844335,-500.0,0.00011547,2]
[323284395,1713871844344,-500.0,0.00011547,2]
[323284396,1713871844354,-500.0,0.00011547,2]
[323284397,1713871844364,-854.94,0.00011547,2]
[323284398,1713871844374,-500.0,0.00011547,2]
[323284399,1713871844383,-5162.62,0.00011547,2]
[323284400,1713871844393,-45186.54,0.00011547,2]
[323284401,1713871844402,-500.0,0.00011547,2]
[323284402,1713871844412,-379.36531968,0.00011548,2]
[323284404,1713871844421,-500.0,0.00011548,2]
[323284406,1713871844430,-500.0,0.00011548,2]
[323284408,1713871844442,-500.0,0.00011548,2]
[323284410,1713871844451,-205.59822143,0.00011548,2]
[323284412,1713871844460,-366.94316858,0.00011548,2]
[323284414,1713871844469,-1087.26,0.00011548,2]
[323284416,1713871844478,-1104.64,0.00011548,2]
[323284418,1713871844488,-500.0,0.00011548,2]
[323284420,1713871844498,-500.0,0.00011548,2]
[323284422,1713871844507,-500.0,0.00011548,2]
[323284424,1713871844517,-500.0,0.00011548,2]
[323284426,1713871844527,-500.0,0.00011548,2]
[323284428,1713871844536,-500.0,0.00011548,2]
[323284430,1713871844546,-500.0,0.00011548,2]
[323284432,1713871844556,-611.50097945,0.00011548,2]
[323284434,1713871844565,-500.0,0.00011548,2]
[323284436,1713871844575,-500.0,0.00011548,2]
[323284438,1713871844584,-500.0,0.00011548,2]
[323284440,1713871844594,-500.0,0.00011548,2]
[323284442,1713871844604,-1159.71,0.00011548,2]
[323284443,1713871844614,-324.06218464,0.00011548,2]
[323284444,1713871844623,-688.55,0.00011548,2]
[323284445,1713871844633,-500.0,0.00011548,2]
[323284446,1713871844644,-1154.44,0.00011548,2]
[323284447,1713871844654,-920.53,0.00011548,2]
[323284448,1713871844666,-500.0,0.00011548,2]
[323284449,1713871844675,-500.0,0.00011548,2]
[323284450,1713871844685,-500.0,0.00011548,2]
[323284451,1713871844696,-662.09,0.00011548,2]
[323284452,1713871844706,-500.0,0.00011548,2]
[323284453,1713871844715,-609.82887267,0.00011548,2]
[323284454,1713871844725,-297.15972543,0.00011548,2]
[323284455,1713871844736,-500.0,0.00011548,2]
[323284456,1713871844747,-972.07,0.00011548,2]
[323284457,1713871844756,-500.0,0.00011548,2]
[323284458,1713871844765,-500.0,0.00011548,2]
[323284459,1713871844775,-500.0,0.00011548,2]
[323284460,1713871844784,-500.0,0.00011548,2]
[323284461,1713871844793,-500.0,0.00011548,2]
[323284462,1713871844803,-500.0,0.00011548,2]
[323284463,1713871844812,-874.43,0.00011548,2]
[323284464,1713871844821,-500.0,0.00011548,2]
[323284465,1713871844831,-806.66,0.00011548,2]
[323284466,1713871844840,-500.0,0.00011548,2]
[323284467,1713871844850,-992.39,0.00011548,2]
[323284468,1713871844859,-500.0,0.00011548,2]
[323284469,1713871844869,-799.06,0.00011548,2]
[323284470,1713871844880,-500.0,0.00011548,2]
[323284471,1713871844890,-500.0,0.00011548,2]
[323284472,1713871844900,-500.0,0.00011548,2]
[323284473,1713871844909,-500.0,0.00011548,2]
[323284474,1713871844918,-500.0,0.00011548,2]
[323284475,1713871844928,-500.0,0.00011548,2]
[323284476,1713871844937,-500.0,0.00011548,2]
[323284477,1713871844948,-504.42140878,0.00011548,2]
[323284478,1713871844958,-500.0,0.00011548,2]
[323284479,1713871844967,-500.0,0.00011548,2]
[323284480,1713871844977,-819.54,0.00011548,2]
[323284481,1713871844986,-641.23,0.00011548,2]
[323284482,1713871844996,-500.0,0.00011548,2]
[323284483,1713871845005,-500.0,0.00011548,2]
[323284484,1713871845015,-894.72,0.00011548,2]
[323284485,1713871845024,-589.24,0.00011548,2]
[323284486,1713871845034,-500.0,0.00011548,2]
[323284487,1713871845130,-890.49,0.00011548,2]
[323284488,1713871845140,-500.0,0.00011548,2]
[323284489,1713871845150,-500.0,0.00011548,2]
[323284490,1713871845160,-693.8,0.00011548,2]
[323284491,1713871845170,-1439.01,0.00011548,2]
[323284492,1713871845180,-500.0,0.00011548,2]
[323284493,1713871845189,-500.0,0.00011548,2]
[323284494,1713871845199,-646.12847561,0.00011548,2]
[323284495,1713871845208,-544.76,0.00011548,2]
[323284496,1713871845217,-500.0,0.00011548,2]
[323284497,1713871845226,-500.0,0.00011548,2]
[323284498,1713871845236,-500.0,0.00011548,2]
[323284499,1713871845245,-642.23,0.00011548,2]
[323284500,1713871845254,-1140.65,0.00011548,2]
[323284501,1713871845263,-500.0,0.00011548,2]
[323284502,1713871845272,-645.43,0.00011548,2]
[323284503,1713871845282,-500.0,0.00011548,2]
[323284504,1713871845292,-1468.39,0.00011548,2]
[323284505,1713871845304,-530.26,0.00011548,2]
[323284506,1713871845315,-1798.04,0.00011548,2]
[323284507,1713871845324,-602.85,0.00011548,2]
[323284508,1713871845334,-540.95,0.00011548,2]
[323284509,1713871845345,-500.0,0.00011548,2]
[323284510,1713871845354,-500.0,0.00011548,2]
[323284511,1713871845365,-500.0,0.00011548,2]
[323284512,1713871845374,-500.0,0.00011548,2]
[323284513,1713871845383,-500.0,0.00011548,2]
[323284514,1713871845392,-500.0,0.00011548,2]
[323284515,1713871845402,-500.0,0.00011548,2]
[323284516,1713871845412,-708.86,0.00011548,2]
[323284517,1713871845421,-500.0,0.00011548,2]
[323284518,1713871845431,-500.0,0.00011548,2]
[323284519,1713871845442,-500.0,0.00011548,2]
[323284520,1713871845451,-500.0,0.00011548,2]
[323284521,1713871845460,-718.03,0.00011548,2]
[323284522,1713871845469,-500.0,0.00011548,2]
[323284523,1713871845478,-848.63,0.00011548,2]
[323284524,1713871845488,-500.0,0.00011548,2]
[323284525,1713871845497,-500.0,0.00011548,2]
[323284526,1713871845507,-810.11,0.00011548,2]
[323284527,1713871845517,-500.0,0.00011548,2]
[323284528,1713871845527,-950.48,0.00011548,2]
[323284529,1713871845536,-238.20349946,0.00011548,2]
[323284530,1713871845546,-1960.02,0.00011548,2]
[323284531,1713871845557,-870.32,0.00011548,2]
[323284532,1713871845566,-711.68,0.00011548,2]
[323284533,1713871845576,-529.66,0.00011548,2]
[323284534,1713871845585,-613.2,0.00011548,2]
[323284535,1713871845594,-500.0,0.00011548,2]
[323284536,1713871845603,-1181.54,0.00011548,2]
[323284537,1713871845612,-1500.18,0.00011548,2]
[323284538,1713871845621,-866.55,0.00011548,2]
[323284539,1713871845630,-730.67,0.00011548,2]
[323284540,1713871845639,-500.0,0.00011548,2]
[323284541,1713871845648,-500.0,0.00011548,2]
[323284542,1713871845659,-500.0,0.00011548,2]
[323284543,1713871845669,-3198.2,0.00011548,2]
[323284544,1713871845678,-908.37,0.00011548,2]
[323284545,1713871845687,-771.21,0.00011548,2]
[323284546,1713871845697,-654.32,0.00011548,2]
[323284547,1713871845707,-8802.65,0.00011548,2]
[323284548,1713871845716,-882.55,0.00011548,2]
[323284549,1713871845725,-500.0,0.00011548,2]
[323284550,1713871845735,-500.0,0.00011548,2]
[323284551,1713871845745,-3092.05,0.00011548,2]
[323284552,1713871845754,-1099.1,0.00011548,2]
[323284553,1713871845763,-430.40221037,0.00011548,2]
[323284554,1713871845772,-500.0,0.00011548,2]
[323284555,1713871845782,-500.0,0.00011548,2]
[323284556,1713871845791,-500.0,0.00011548,2]
[323284557,1713871845800,-500.0,0.00011548,2]
[323284558,1713871845809,-500.0,0.00011548,2]
[323284559,1713871845818,-927.37,0.00011548,2]
[323284560,1713871845829,-500.0,0.00011548,2]
[323284561,1713871845838,-500.0,0.00011548,2]
[323284562,1713871845847,-500.0,0.00011548,2]
[323284563,1713871845855,-500.0,0.00011548,2]
[323284564,1713871845865,-555.92,0.00011548,2]
[323284565,1713871845874,-207.22680324,0.00011549,2]
[323284566,1713871845884,-5845.67259112,0.00011549,2]
[323284567,1713871845893,-381.95,0.00011549,2]
[323284568,1713871845902,-500.0,0.00011549,2]
[323284569,1713871845911,-723.07,0.00011549,2]
[323284570,1713871845920,-641.32,0.00011549,2]
[323284571,1713871845929,-500.0,0.00011549,2]
[323284572,1713871845938,-242.17630313,0.00011549,2]
[323284573,1713871845948,-535.45273167,0.00011549,2]
[323284574,1713871845957,-6499.75440211,0.00011581,2]
[323284575,1713871845966,-172.14970337,0.00011595,2]
[323284576,1713871845976,-52471.14878663,0.000116,2]
[323284577,1713871845985,-3300.0,0.000116,4]
[323284578,1713871845995,-154.42219934,0.00011601,2]
[323284579,1713871846004,-788.76825139,0.00011634,2]
[323284580,1713871846014,-156.10768848,0.00011635,2]
[323284581,1713871846023,-10000.0,0.00011635,2]
[323284582,1713871846032,-500.0,0.00011635,2]
[323284583,1713871846042,-234.97142404,0.00011654,2]
[323284584,1713871846051,-1000.0,0.00011658,2]
[323284585,1713871846060,-500.0,0.00011658,2]
[323284586,1713871846069,-1000.0,0.00011659,2]
[323284587,1713871846078,-1000.0,0.00011659,2]
[323284588,1713871846087,-1000.0,0.00011659,2]
[323284589,1713871846096,-1000.0,0.00011659,2]
[323284590,1713871846106,-500.0,0.00011659,2]
[323284591,1713871846115,-500.0,0.00011659,2]
[323284592,1713871846124,-500.0,0.00011693,2]
[323284593,1713871846134,-500.0,0.00011693,2]
[323284594,1713871846143,-500.0,0.00011693,2]
[323284595,1713871846152,-500.0,0.00011693,2]
[323284596,1713871846162,-560.3373,0.00011693,2]
[323284597,1713871846171,-1000.0,0.00011693,2]
[323284598,1713871846180,-1000.0,0.00011693,2]
[323284599,1713871846190,-1000.0,0.00011693,2]
[323284600,1713871846201,-1000.0,0.00011693,2]
[323284601,1713871846210,-1000.0,0.00011693,2]
[323284602,1713871846220,-1000.0,0.00011693,2]
[323284603,1713871846229,-1000.0,0.00011693,2]
[323284604,1713871846239,-1000.0,0.00011693,2]
[323284605,1713871846248,-1000.0,0.00011693,2]
[323284606,1713871846258,-1000.0,0.00011693,2]
[323284607,1713871846267,-1000.0,0.00011693,2]
[323284608,1713871846276,-1000.0,0.00011693,2]
[323284609,1713871846286,-1000.0,0.00011693,2]
[323284610,1713871846295,-1000.0,0.00011693,2]
[323284611,1713871846305,-1000.0,0.00011693,2]
[323284612,1713871846314,-1000.0,0.00011693,2]
[323284613,1713871846323,-1000.0,0.00011693,2]
[323284614,1713871846333,-1000.0,0.00011693,2]
[323284615,1713871846342,-1000.0,0.00011693,2]
[323284616,1713871846351,-1000.0,0.00011693,2]
[323284617,1713871846360,-1000.0,0.00011693,2]
[323284618,1713871846369,-1000.0,0.00011693,2]
[323284619,1713871846378,-1000.0,0.00011693,2]
[323284620,1713871846387,-1000.0,0.00011693,2]
[323284621,1713871846396,-609.5504,0.00011693,2]
[323284622,1713871846405,-150.37,0.000117,2]
[323284623,1713871846414,-154.51,0.000117,2]
[323284624,1713871846423,-151.96,0.000117,2]
[323284625,1713871846432,-150.47,0.000117,2]
[323284626,1713871846441,-1037.82,0.000117,2]
[323284627,1713871846452,-150.0,0.000117,2]
[323284628,1713871846461,-300.0,0.000117,2]
[323284629,1713871846471,-150.0,0.000117,2]
[323284630,1713871846480,-150.0,0.000117,2]
[323284631,1713871846490,-1312.22,0.000117,2]
[323284632,1713871846499,-1043.62,0.000117,2]
[323284633,1713871846508,-150.0,0.000117,2]
[323284634,1713871846517,-150.0,0.000117,2]
[323284635,1713871846527,-150.0,0.000117,2]
[323284636,1713871846536,-150.0,0.000117,2]
[323284637,1713871846545,-150.0,0.000117,2]
[323284638,1713871846554,-150.0,0.000117,2]
[323284639,1713871846564,-150.0,0.000117,2]
[323284640,1713871846573,-422.21,0.000117,2]
[323284641,1713871846582,-150.0,0.000117,2]
[323284642,1713871846591,-150.0,0.000117,2]
[323284643,1713871846600,-150.0,0.000117,2]
[323284644,1713871846609,-4900.0,0.000117,4]
[323284645,1713871846618,-162.79,0.000117,2]
[323284646,1713871846627,-150.0,0.000117,2]
[323284647,1713871846637,-910.21,0.000117,2]
[323284648,1713871846646,-150.0,0.000117,2]
[323284649,1713871846656,-1041.69,0.000117,2]
[323284650,1713871846668,-538.13,0.000117,2]
[323284651,1713871846677,-150.0,0.000117,2]
[323284652,1713871846686,-161.03,0.000117,2]
[323284653,1713871846697,-1050.0,0.00011713,2]
[323284654,1713871846707,-6499.75440211,0.00011713,2]
[323284655,1713871846717,-240478.71876943,0.00011723,3]
[323284656,1713871846726,-387789.57109625,0.00011723,2]
[323284657,1713871846736,-1283.3664254,0.00011744,2]
[323284658,1713871846745,-2485.8220596,0.00011744,2]
[323284659,1713871846754,-35443.33776737,0.00011752,2]
[323284660,1713871846763,-10000.0,0.00011753,2]
[323284661,1713871846773,-500.0,0.00011753,2]
[323284662,1713871846783,-154.42219934,0.00011756,2]
[323284663,1713871846797,-555.1,0.00011775,2]
[323284664,1713871846806,-556.12,0.00011779,2]
[323284665,1713871846815,-157.46268323,0.00011785,2]
[323284666,1713871846825,-521.81,0.000118,2]
[323284667,1713871846835,-418.94,0.000118,2]
[323284668,1713871846845,-300.44,0.000118,2]
[323284669,1713871846856,-910.21,0.000118,2]
[323284670,1713871846865,-150.0,0.000118,2]
[323284671,1713871846874,-301.48,0.000118,2]
[323284672,1713871846883,-473.68,0.000118,2]
[323284673,1713871846893,-150.0,0.000118,2]
[323284674,1713871846902,-350.43,0.000118,2]
[323284675,1713871846912,-903.95,0.000118,2]
[323284676,1713871846922,-150.0,0.000118,2]
[323284677,1713871846932,-910.21,0.000118,2]
[323284678,1713871846943,-150.0,0.000118,2]
[323284679,1713871846955,-150.0,0.000118,2]
[323284680,1713871846964,-162.79,0.000118,2]
[323284681,1713871846973,-6600.0,0.000118,4]
[323284682,1713871846982,-10000.0,0.0001182,2]
[323284683,1713871846991,-500.0,0.0001182,2]
[323284684,1713871847002,-1896.92,0.0001182,2]
[323284685,1713871847011,-500.0,0.0001182,2]
[323284686,1713871847020,-1234.83,0.0001182,2]
[323284687,1713871847029,-500.0,0.0001182,2]
[323284688,1713871847039,-3765.16,0.0001182,2]
[323284689,1713871847048,-500.0,0.0001182,2]
[323284690,1713871847057,-500.0,0.0001182,2]
[323284691,1713871847066,-3758.2,0.0001182,2]
[323284692,1713871847075,-500.0,0.0001182,2]
[323284693,1713871847084,-500.0,0.0001182,2]
[323284694,1713871847097,-8405.67,0.0001182,2]
[323284695,1713871847106,-1070.9,0.0001182,2]
[323284696,1713871847115,-1028.79,0.0001182,2]